[Event "*** Titled Tuesday Blitz"]
[Site "Chess.com"]
[Date "2020.04.28"]
[Round "1"]
[White "archess2"]
[Black "SoltaniciR"]
[Result "0-1"]
[WhiteElo "2219"]
[BlackElo "2557"]
[TimeControl "180+1"]
[EndTime "10:08:30 PDT"]
[Termination "SoltaniciR won by resignation"]

1. d4 {[%clk 0:02:51.9]} 1... Nf6 {[%clk 0:02:58.9]} 2. c4 {[%clk 0:02:52]} 2...
Nc6 {[%clk 0:02:58.3]} 3. Nc3 {[%clk 0:02:52.2]} 3... e5 {[%clk 0:02:58.1]} 4.
d5 {[%clk 0:02:52.3]} 4... Ne7 {[%clk 0:02:58.1]} 5. e4 {[%clk 0:02:51.8]} 5...
Ng6 {[%clk 0:02:58.1]} 6. Nf3 {[%clk 0:02:51.6]} 6... Bc5 {[%clk 0:02:57.4]} 7.
Bg5 {[%clk 0:02:45.2]} 7... h6 {[%clk 0:02:56]} 8. Bxf6 {[%clk 0:02:43.8]} 8...
Qxf6 {[%clk 0:02:55.7]} 9. g3 {[%clk 0:02:39.5]} 9... d6 {[%clk 0:02:52.4]} 10.
Bg2 {[%clk 0:02:38.5]} 10... h5 {[%clk 0:02:36.4]} 11. h4 {[%clk 0:02:31.8]}
11... Bg4 {[%clk 0:02:29.8]} 12. Qd3 {[%clk 0:02:23.2]} 12... O-O {[%clk
0:02:21.6]} 13. O-O {[%clk 0:02:21.1]} 13... a6 {[%clk 0:02:10.3]} 14. a3 {[%clk
0:02:17.8]} 14... Ne7 {[%clk 0:01:52.6]} 15. b4 {[%clk 0:02:15.4]} 15... Ba7
{[%clk 0:01:47.3]} 16. Nh2 {[%clk 0:02:14.9]} 16... Bd7 {[%clk 0:01:46.2]} 17.
Qf3 {[%clk 0:02:12.4]} 17... Qxf3 {[%clk 0:01:43.4]} 18. Bxf3 {[%clk 0:02:11.8]}
18... g6 {[%clk 0:01:42.9]} 19. Rfc1 {[%clk 0:02:08.6]} 19... f5 {[%clk
0:01:41.4]} 20. Rc2 {[%clk 0:02:06.3]} 20... Bd4 {[%clk 0:01:25.9]} 21. Rd1
{[%clk 0:02:02.9]} 21... fxe4 {[%clk 0:01:15.8]} 22. Bxe4 {[%clk 0:01:59.3]}
22... Rf6 {[%clk 0:00:54.7]} 23. Nf3 {[%clk 0:01:58.4]} 23... Ba7 {[%clk
0:00:53.8]} 24. c5 {[%clk 0:01:50.1]} 24... Bg4 {[%clk 0:00:52.8]} 25. Rd3
{[%clk 0:01:44.4]} 25... Raf8 {[%clk 0:00:49.8]} 26. Nh2 {[%clk 0:01:40.3]}
26... dxc5 {[%clk 0:00:48.2]} 27. Nxg4 {[%clk 0:01:31.9]} 27... hxg4 {[%clk
0:00:49.1]} 28. b5 {[%clk 0:01:24.6]} 28... c4 {[%clk 0:00:48.5]} 29. Rdd2
{[%clk 0:01:24.9]} 29... Nf5 {[%clk 0:00:44.6]} 30. Bxf5 {[%clk 0:01:20.2]}
30... gxf5 {[%clk 0:00:40.2]} 31. bxa6 {[%clk 0:01:15.3]} 31... Rxa6 {[%clk
0:00:39.4]} 32. Nb5 {[%clk 0:01:12.6]} 32... f4 {[%clk 0:00:16.2]} 33. gxf4
{[%clk 0:01:05.6]} 33... Rxf4 {[%clk 0:00:13.5]} 34. Kg2 {[%clk 0:01:01.5]}
34... Bb6 {[%clk 0:00:10.1]} 35. d6 {[%clk 0:00:59]} 35... c6 {[%clk 0:00:10]}
36. Nc7 {[%clk 0:00:57.8]} 36... Rxa3 {[%clk 0:00:08.9]} 37. Ne6 {[%clk
0:00:55.5]} 37... Rf6 {[%clk 0:00:08.6]} 38. Ng5 {[%clk 0:00:48.7]} 38... Rd3
{[%clk 0:00:07.7]} 39. Ne4 {[%clk 0:00:44.3]} 39... Rf4 {[%clk 0:00:07.5]} 40.
Ng5 {[%clk 0:00:29.2]} 40... Rfd4 {[%clk 0:00:06.5]} 41. Re2 {[%clk 0:00:24.7]}
41... Rxd6 {[%clk 0:00:04.1]} 42. Rxc4 {[%clk 0:00:24.7]} 42... Rd2 {[%clk
0:00:03.2]} 43. Rxd2 {[%clk 0:00:20.3]} 43... Rxd2 {[%clk 0:00:04.1]} 44. Ne4
{[%clk 0:00:20.8]} 44... Rd4 {[%clk 0:00:04.6]} 45. Rxd4 {[%clk 0:00:19.6]}
45... Bxd4 {[%clk 0:00:05.5]} 46. Nf6+ {[%clk 0:00:20.1]} 46... Kf7 {[%clk
0:00:05]} 47. Nxg4 {[%clk 0:00:21]} 47... b5 {[%clk 0:00:04.8]} 48. Kf3 {[%clk
0:00:21.6]} 48... b4 {[%clk 0:00:05.2]} 49. Ke2 {[%clk 0:00:22.5]} 49... b3
{[%clk 0:00:05.5]} 50. Kd1 {[%clk 0:00:23.4]} 50... c5 {[%clk 0:00:05.3]} 51.
Nh2 {[%clk 0:00:23.1]} 51... c4 {[%clk 0:00:05.4]} 52. Nf3 {[%clk 0:00:23.1]}
52... c3 {[%clk 0:00:05.7]} 53. Kc1 {[%clk 0:00:23.5]} 53... Bxf2 {[%clk
0:00:03.9]} 54. Nxe5+ {[%clk 0:00:23.1]} 54... Ke6 {[%clk 0:00:04.8]} 55. Nd3
{[%clk 0:00:21.9]} 55... Be3+ {[%clk 0:00:04.5]} 56. Kb1 {[%clk 0:00:22.2]}
56... Kd5 {[%clk 0:00:04.7]} 57. Nb4+ {[%clk 0:00:21.6]} 57... Kc4 {[%clk
0:00:04.6]} 58. Nc2 {[%clk 0:00:21.9]} 58... bxc2+ {[%clk 0:00:04.1]} 59. Kxc2
{[%clk 0:00:22.5]} 59... Bd2 {[%clk 0:00:03.4]} 60. h5 {[%clk 0:00:22.8]} 60...
Kd5 {[%clk 0:00:03.8]} 61. Kd1 {[%clk 0:00:22.7]} 61... Ke6 {[%clk 0:00:03.8]}
62. Kc2 {[%clk 0:00:23.4]} 62... Kf7 {[%clk 0:00:04.3]} 63. Kd1 {[%clk 0:00:24]}
63... Kg7 {[%clk 0:00:05.2]} 64. Kc2 {[%clk 0:00:24.7]} 64... Kh6 {[%clk
0:00:06.1]} 65. Kd1 {[%clk 0:00:25.3]} 65... Kxh5 {[%clk 0:00:07]} 66. Kc2
{[%clk 0:00:25.9]} 66... Kg4 {[%clk 0:00:07.9]} 67. Kd1 {[%clk 0:00:26.8]} 67...
Kf3 {[%clk 0:00:08.4]} 68. Kc2 {[%clk 0:00:27]} 68... Ke2 {[%clk 0:00:08.7]} 69.
Kb1 {[%clk 0:00:26.9]} 69... Kd1 {[%clk 0:00:08.6]} 70. Ka2 {[%clk 0:00:27.4]}
70... c2 {[%clk 0:00:08.7]} 71. Kb3 {[%clk 0:00:27.7]} 71... c1=Q {[%clk
0:00:08.5]} 0-1

[Event "*** Titled Tuesday Blitz"]
[Site "Chess.com"]
[Date "2020.04.28"]
[Round "1"]
[White "zajka-molotok"]
[Black "DryCounty"]
[Result "0-1"]
[WhiteElo "2404"]
[BlackElo "2760"]
[TimeControl "180+1"]
[EndTime "10:08:31 PDT"]
[Termination "DryCounty won by resignation"]

1. d4 {[%clk 0:03:00.9]} 1... Nf6 {[%clk 0:02:59.2]} 2. c4 {[%clk 0:03:00]} 2...
g6 {[%clk 0:02:59.5]} 3. Nc3 {[%clk 0:03:00]} 3... Bg7 {[%clk 0:02:59.9]} 4. e4
{[%clk 0:03:00]} 4... O-O {[%clk 0:03:00.3]} 5. Be2 {[%clk 0:02:59.1]} 5... d6
{[%clk 0:03:00.6]} 6. Be3 {[%clk 0:02:58.8]} 6... c5 {[%clk 0:02:59.6]} 7. d5
{[%clk 0:02:57.6]} 7... e6 {[%clk 0:02:59.2]} 8. Nf3 {[%clk 0:02:50.2]} 8...
exd5 {[%clk 0:02:59]} 9. cxd5 {[%clk 0:02:49.8]} 9... Re8 {[%clk 0:02:58.1]} 10.
Nd2 {[%clk 0:02:47.9]} 10... a6 {[%clk 0:02:54.9]} 11. a4 {[%clk 0:02:46.8]}
11... Nbd7 {[%clk 0:02:54]} 12. O-O {[%clk 0:02:43.3]} 12... Qc7 {[%clk
0:02:48.5]} 13. Qc2 {[%clk 0:02:23.1]} 13... Ne5 {[%clk 0:02:39.3]} 14. h3
{[%clk 0:02:22.1]} 14... c4 {[%clk 0:02:38.7]} 15. f4 {[%clk 0:02:14.4]} 15...
Nd3 {[%clk 0:02:38.6]} 16. Bxd3 {[%clk 0:02:13.7]} 16... cxd3 {[%clk 0:02:38.2]}
17. Qxd3 {[%clk 0:02:13.5]} 17... Bd7 {[%clk 0:02:24.9]} 18. Bd4 {[%clk
0:02:04.2]} 18... Nh5 {[%clk 0:02:09.3]} 19. Bxg7 {[%clk 0:01:41.5]} 19... Nxg7
{[%clk 0:02:09.3]} 20. Qd4 {[%clk 0:01:35]} 20... f5 {[%clk 0:02:09.4]} 21. Rae1
{[%clk 0:01:25.9]} 21... Rac8 {[%clk 0:02:04.3]} 22. e5 {[%clk 0:01:22.3]} 22...
Qc5 {[%clk 0:01:59.3]} 23. Qxc5 {[%clk 0:01:15.7]} 23... Rxc5 {[%clk 0:02:00.2]}
24. e6 {[%clk 0:01:05.3]} 24... Bc8 {[%clk 0:02:00.2]} 25. Rc1 {[%clk 0:00:58]}
25... Nh5 {[%clk 0:01:53.7]} 26. b4 {[%clk 0:00:54.7]} 26... Rc7 {[%clk
0:01:52.5]} 27. Ne2 {[%clk 0:00:51.6]} 27... Rxc1 {[%clk 0:01:48.7]} 28. Rxc1
{[%clk 0:00:51.3]} 28... Nf6 {[%clk 0:01:48.4]} 29. Nc3 {[%clk 0:00:46.2]} 29...
Nh5 {[%clk 0:01:38.3]} 30. Nc4 {[%clk 0:00:42.6]} 30... Bxe6 {[%clk 0:01:24.1]}
31. dxe6 {[%clk 0:00:39.9]} 31... Rxe6 {[%clk 0:01:23.9]} 32. Nd5 {[%clk
0:00:36.4]} 32... Kg7 {[%clk 0:01:21.6]} 33. Kf2 {[%clk 0:00:33.2]} 33... Re4
{[%clk 0:01:04.6]} 34. g3 {[%clk 0:00:32]} 34... Rd4 {[%clk 0:01:01.2]} 35. Nde3
{[%clk 0:00:30.5]} 35... d5 {[%clk 0:00:53.9]} 36. Ne5 {[%clk 0:00:26.7]} 36...
Rxb4 {[%clk 0:00:50.6]} 37. Rc7+ {[%clk 0:00:25.2]} 37... Kf8 {[%clk 0:00:49.5]}
38. Nxd5 {[%clk 0:00:25.3]} 38... Rb2+ {[%clk 0:00:46]} 39. Kf3 {[%clk
0:00:24.2]} 39... Rb3+ {[%clk 0:00:46]} 40. Rc3 {[%clk 0:00:24.2]} 40... Rxc3+
{[%clk 0:00:44.3]} 41. Nxc3 {[%clk 0:00:23.9]} 41... Ke7 {[%clk 0:00:42.7]} 42.
a5 {[%clk 0:00:23]} 42... Kd6 {[%clk 0:00:40.4]} 43. Na4 {[%clk 0:00:21.5]}
43... Nf6 {[%clk 0:00:36.9]} 44. Nc3 {[%clk 0:00:21.5]} 44... Kc5 {[%clk
0:00:34.5]} 45. Ne2 {[%clk 0:00:18.3]} 45... Kb4 {[%clk 0:00:31.6]} 46. Nd4
{[%clk 0:00:15.4]} 46... Kxa5 {[%clk 0:00:30.6]} 47. g4 {[%clk 0:00:15.7]} 47...
fxg4+ {[%clk 0:00:29.3]} 48. hxg4 {[%clk 0:00:15.7]} 48... Kb4 {[%clk 0:00:29]}
49. g5 {[%clk 0:00:15.8]} 49... Nd5 {[%clk 0:00:26.3]} 50. Ke4 {[%clk
0:00:15.6]} 50... Ne7 {[%clk 0:00:25.5]} 51. f5 {[%clk 0:00:12.8]} 51... gxf5+
{[%clk 0:00:24.9]} 52. Nxf5 {[%clk 0:00:13]} 52... Nxf5 {[%clk 0:00:24.5]} 53.
Kxf5 {[%clk 0:00:13.2]} 53... a5 {[%clk 0:00:25.1]} 54. Kf6 {[%clk 0:00:12.9]}
54... a4 {[%clk 0:00:24.9]} 55. Nd3+ {[%clk 0:00:11.7]} 55... Kc3 {[%clk
0:00:23.3]} 56. Nc1 {[%clk 0:00:11.4]} 56... b5 {[%clk 0:00:20.4]} 57. Kg7
{[%clk 0:00:11.3]} 57... b4 {[%clk 0:00:19.5]} 58. Kxh7 {[%clk 0:00:11.3]} 58...
b3 {[%clk 0:00:19.8]} 59. g6 {[%clk 0:00:11.1]} 59... b2 {[%clk 0:00:20]} 60.
Ne2+ {[%clk 0:00:10.7]} 60... Kc4 {[%clk 0:00:18]} 61. g7 {[%clk 0:00:08.2]}
61... b1=Q+ {[%clk 0:00:18.1]} 62. Kh8 {[%clk 0:00:08.4]} 62... Qh1+ {[%clk
0:00:17.6]} 63. Kg8 {[%clk 0:00:08.7]} 63... a3 {[%clk 0:00:17.1]} 64. Kf8
{[%clk 0:00:08.6]} 64... Qa8+ {[%clk 0:00:16.8]} 65. Kf7 {[%clk 0:00:08.5]}
65... Qb7+ {[%clk 0:00:17]} 66. Kf8 {[%clk 0:00:08.3]} 66... Qxg7+ {[%clk
0:00:17.3]} 67. Kxg7 {[%clk 0:00:08.6]} 67... a2 {[%clk 0:00:17.8]} 68. Nc1
{[%clk 0:00:03.2]} 68... a1=Q+ {[%clk 0:00:17.7]} 0-1

[Event "*** Titled Tuesday Blitz"]
[Site "Chess.com"]
[Date "2020.04.28"]
[Round "1"]
[White "Oneofmyturns"]
[Black "VALPARAISO37"]
[Result "1/2-1/2"]
[WhiteElo "2670"]
[BlackElo "2350"]
[TimeControl "180+1"]
[EndTime "10:08:31 PDT"]
[Termination "Game drawn by repetition"]

1. d4 {[%clk 0:02:59.9]} 1... Nf6 {[%clk 0:02:56.5]} 2. c4 {[%clk 0:02:59.4]}
2... e6 {[%clk 0:02:55.9]} 3. Nf3 {[%clk 0:02:56.9]} 3... d5 {[%clk 0:02:55.8]}
4. Nc3 {[%clk 0:02:54.5]} 4... a6 {[%clk 0:02:55.3]} 5. cxd5 {[%clk 0:02:47.7]}
5... exd5 {[%clk 0:02:54.5]} 6. Bg5 {[%clk 0:02:48]} 6... Be6 {[%clk 0:02:55]}
7. e3 {[%clk 0:02:47.6]} 7... Bd6 {[%clk 0:02:54.7]} 8. Bd3 {[%clk 0:02:46.3]}
8... Nbd7 {[%clk 0:02:54.5]} 9. O-O {[%clk 0:02:42]} 9... c6 {[%clk 0:02:54.8]}
10. Bf4 {[%clk 0:02:38.9]} 10... Qc7 {[%clk 0:02:49.4]} 11. Bxd6 {[%clk
0:02:38]} 11... Qxd6 {[%clk 0:02:49.4]} 12. Rc1 {[%clk 0:02:29.5]} 12... O-O
{[%clk 0:02:48.4]} 13. h3 {[%clk 0:02:28.9]} 13... Rac8 {[%clk 0:02:47.1]} 14.
Na4 {[%clk 0:02:28.3]} 14... c5 {[%clk 0:02:46.4]} 15. dxc5 {[%clk 0:02:26.7]}
15... Nxc5 {[%clk 0:02:46.2]} 16. Nxc5 {[%clk 0:02:23.9]} 16... Rxc5 {[%clk
0:02:45.6]} 17. Rxc5 {[%clk 0:02:20.6]} 17... Qxc5 {[%clk 0:02:44]} 18. Nd4
{[%clk 0:02:21.5]} 18... Bd7 {[%clk 0:02:31.9]} 19. Qb3 {[%clk 0:02:06.7]} 19...
b5 {[%clk 0:02:30.9]} 20. Rd1 {[%clk 0:02:07.1]} 20... Rc8 {[%clk 0:02:26.6]}
21. Be2 {[%clk 0:02:00.5]} 21... h6 {[%clk 0:02:03.5]} 22. Bf3 {[%clk
0:02:00.1]} 22... a5 {[%clk 0:02:00.7]} 23. Qd3 {[%clk 0:01:51.3]} 23... Qc4
{[%clk 0:01:56.9]} 24. b3 {[%clk 0:01:42.1]} 24... Qxd3 {[%clk 0:01:54.8]} 25.
Rxd3 {[%clk 0:01:43]} 25... Rc1+ {[%clk 0:01:53.7]} 26. Kh2 {[%clk 0:01:42.8]}
26... Ra1 {[%clk 0:01:22.3]} 27. Rd2 {[%clk 0:01:40.8]} 27... g6 {[%clk
0:01:19]} 28. g4 {[%clk 0:01:29.5]} 28... Kg7 {[%clk 0:01:17.9]} 29. Rc2 {[%clk
0:01:28.7]} 29... b4 {[%clk 0:01:12.3]} 30. Ne2 {[%clk 0:01:11]} 30... Be6
{[%clk 0:01:09.5]} 31. Nf4 {[%clk 0:01:10.8]} 31... Ne4 {[%clk 0:01:04]} 32.
Bxe4 {[%clk 0:01:05.7]} 32... dxe4 {[%clk 0:01:04]} 33. Kg3 {[%clk 0:00:54.9]}
33... g5 {[%clk 0:01:03.9]} 34. Ne2 {[%clk 0:00:37.8]} 34... a4 {[%clk
0:01:02.7]} 35. Nd4 {[%clk 0:00:36.5]} 35... axb3 {[%clk 0:01:01.1]} 36. axb3
{[%clk 0:00:37.4]} 36... Rb1 {[%clk 0:00:57.6]} 37. Nxe6+ {[%clk 0:00:36.5]}
37... fxe6 {[%clk 0:00:57.6]} 38. Rc4 {[%clk 0:00:37.1]} 38... Rxb3 {[%clk
0:00:56.8]} 39. Rxe4 {[%clk 0:00:37.5]} 39... Kf6 {[%clk 0:00:57.4]} 40. h4
{[%clk 0:00:37.3]} 40... Rb1 {[%clk 0:00:55.7]} 41. h5 {[%clk 0:00:36.4]} 41...
b3 {[%clk 0:00:54.6]} 42. Rb4 {[%clk 0:00:35.1]} 42... e5 {[%clk 0:00:55]} 43.
Kf3 {[%clk 0:00:34.8]} 43... b2 {[%clk 0:00:52.3]} 44. Ke4 {[%clk 0:00:33.6]}
44... Rg1 {[%clk 0:00:51.9]} 45. Rb6+ {[%clk 0:00:32]} 45... Ke7 {[%clk
0:00:52.6]} 46. Rxb2 {[%clk 0:00:32.2]} 46... Rxg4+ {[%clk 0:00:53.4]} 47. Kxe5
{[%clk 0:00:32.6]} 47... Rh4 {[%clk 0:00:53.5]} 48. Rb7+ {[%clk 0:00:32.4]}
48... Kd8 {[%clk 0:00:53.2]} 49. Kd6 {[%clk 0:00:27]} 49... Kc8 {[%clk
0:00:52.6]} 50. Rf7 {[%clk 0:00:25]} 50... Rxh5 {[%clk 0:00:52.4]} 51. e4 {[%clk
0:00:25.6]} 51... g4 {[%clk 0:00:49.7]} 52. e5 {[%clk 0:00:24.3]} 52... Rh1
{[%clk 0:00:47.6]} 53. Rf8+ {[%clk 0:00:24.5]} 53... Kb7 {[%clk 0:00:47.1]} 54.
e6 {[%clk 0:00:24.2]} 54... Rd1+ {[%clk 0:00:47.6]} 55. Ke7 {[%clk 0:00:19.1]}
55... h5 {[%clk 0:00:47.1]} 56. Rh8 {[%clk 0:00:16.7]} 56... Rd2 {[%clk
0:00:46.1]} 57. Rxh5 {[%clk 0:00:15.3]} 57... Rxf2 {[%clk 0:00:46]} 58. Kd7
{[%clk 0:00:13.5]} 58... Rd2+ {[%clk 0:00:45.3]} 59. Ke8 {[%clk 0:00:13.9]}
59... g3 {[%clk 0:00:44.9]} 60. e7 {[%clk 0:00:13.6]} 60... Rf2 {[%clk
0:00:41.5]} 61. Rg5 {[%clk 0:00:06.5]} 61... g2 {[%clk 0:00:41.8]} 62. Kd7
{[%clk 0:00:07.2]} 62... Rd2+ {[%clk 0:00:40.8]} 63. Ke6 {[%clk 0:00:07.6]}
63... Re2+ {[%clk 0:00:41]} 64. Kf6 {[%clk 0:00:08.1]} 64... Rf2+ {[%clk
0:00:41.3]} 65. Kg7 {[%clk 0:00:07.8]} 65... Re2 {[%clk 0:00:40.3]} 66. Kf7
{[%clk 0:00:06.8]} 66... Rf2+ {[%clk 0:00:40.6]} 67. Ke8 {[%clk 0:00:06.7]}
67... Kc7 {[%clk 0:00:39.4]} 68. Rg3 {[%clk 0:00:06.6]} 68... Re2 {[%clk
0:00:37]} 69. Rg7 {[%clk 0:00:02.9]} 69... Rf2 {[%clk 0:00:36.3]} 70. Rg6 {[%clk
0:00:02.7]} 70... Re2 {[%clk 0:00:35.4]} 71. Kf8 {[%clk 0:00:03.6]} 71... Rf2+
{[%clk 0:00:35.5]} 72. Ke8 {[%clk 0:00:03.6]} 72... Re2 {[%clk 0:00:35.4]} 73.
Rg7 {[%clk 0:00:04.5]} 73... Rf2 {[%clk 0:00:33.5]} 74. Rg6 {[%clk 0:00:04.9]}
1/2-1/2

[Event "*** Titled Tuesday Blitz"]
[Site "Chess.com"]
[Date "2020.04.28"]
[Round "1"]
[White "Alohamora11"]
[Black "FMalexhdez"]
[Result "1-0"]
[WhiteElo "2514"]
[BlackElo "2130"]
[TimeControl "180+1"]
[EndTime "10:08:31 PDT"]
[Termination "Alohamora11 won on time"]

1. e4 {[%clk 0:02:59.5]} 1... c5 {[%clk 0:02:58.3]} 2. Nf3 {[%clk 0:02:59.3]}
2... d6 {[%clk 0:02:58.5]} 3. d4 {[%clk 0:02:57]} 3... cxd4 {[%clk 0:02:58.5]}
4. Nxd4 {[%clk 0:02:57.9]} 4... Nf6 {[%clk 0:02:58.2]} 5. Nc3 {[%clk 0:02:57.7]}
5... a6 {[%clk 0:02:57.5]} 6. h3 {[%clk 0:02:57.3]} 6... e5 {[%clk 0:02:56.5]}
7. Nde2 {[%clk 0:02:56.9]} 7... Be6 {[%clk 0:02:55.4]} 8. g4 {[%clk 0:02:55.6]}
8... h6 {[%clk 0:02:26.2]} 9. Bg2 {[%clk 0:02:54.3]} 9... Nbd7 {[%clk
0:02:25.9]} 10. Be3 {[%clk 0:02:49.6]} 10... Rc8 {[%clk 0:02:24.2]} 11. Qd2
{[%clk 0:02:45.1]} 11... Be7 {[%clk 0:02:22.2]} 12. f4 {[%clk 0:02:37]} 12... b5
{[%clk 0:02:18.7]} 13. f5 {[%clk 0:02:05.4]} 13... Bc4 {[%clk 0:02:16.8]} 14.
O-O-O {[%clk 0:01:53.5]} 14... b4 {[%clk 0:02:13.9]} 15. Nd5 {[%clk 0:01:50.4]}
15... Nxd5 {[%clk 0:02:10.3]} 16. exd5 {[%clk 0:01:48.7]} 16... Qa5 {[%clk
0:01:50.8]} 17. Rdf1 {[%clk 0:00:50.2]} 17... Qxa2 {[%clk 0:01:48.1]} 18. Kd1
{[%clk 0:00:50.7]} 18... Qxb2 {[%clk 0:01:40.1]} 19. h4 {[%clk 0:00:47.1]} 19...
Bxe2+ {[%clk 0:01:36.2]} 20. Qxe2 {[%clk 0:00:45.5]} 20... Qb1+ {[%clk
0:01:35.1]} 21. Bc1 {[%clk 0:00:46.1]} 21... b3 {[%clk 0:01:26.9]} 22. Be4
{[%clk 0:00:43]} 22... b2 {[%clk 0:01:25.2]} 23. Qd2 {[%clk 0:00:35.9]} 23...
bxc1=Q+ {[%clk 0:01:21.9]} 24. Qxc1 {[%clk 0:00:36.8]} 24... Qb4 {[%clk
0:01:18.6]} 25. Qe3 {[%clk 0:00:35]} 25... Nc5 {[%clk 0:01:15.8]} 26. Bd3 {[%clk
0:00:34.6]} 26... e4 {[%clk 0:01:08.9]} 27. Be2 {[%clk 0:00:31]} 27... Qb1+
{[%clk 0:01:03.9]} 28. Qc1 {[%clk 0:00:30.4]} 28... Qb4 {[%clk 0:00:55]} 29. g5
{[%clk 0:00:22.5]} 29... Nb3 {[%clk 0:00:51.1]} 30. Qe3 {[%clk 0:00:19.3]} 30...
Nd4 {[%clk 0:00:45.4]} 31. f6 {[%clk 0:00:17.8]} 31... Qb1+ {[%clk 0:00:41.9]}
32. Qc1 {[%clk 0:00:17.9]} 32... Qxc1+ {[%clk 0:00:40.1]} 33. Kxc1 {[%clk
0:00:18.8]} 33... Nxe2+ {[%clk 0:00:37.6]} 34. Kd2 {[%clk 0:00:19.7]} 34... gxf6
{[%clk 0:00:37.1]} 35. Kxe2 {[%clk 0:00:19.6]} 35... hxg5 {[%clk 0:00:35.8]} 36.
hxg5 {[%clk 0:00:19.4]} 36... Rxh1 {[%clk 0:00:35]} 37. Rxh1 {[%clk 0:00:20.3]}
37... fxg5 {[%clk 0:00:30.3]} 38. Kd2 {[%clk 0:00:18]} 38... e3+ {[%clk
0:00:28.9]} 39. Kxe3 {[%clk 0:00:18.4]} 39... Rxc2 {[%clk 0:00:29]} 40. Rb1
{[%clk 0:00:18.1]} 40... Rc3+ {[%clk 0:00:29.2]} 41. Kd4 {[%clk 0:00:17.8]}
41... Rc5 {[%clk 0:00:28.2]} 42. Rb6 {[%clk 0:00:17.1]} 42... a5 {[%clk
0:00:26.4]} 43. Ra6 {[%clk 0:00:17.4]} 43... g4 {[%clk 0:00:24.3]} 44. Ke4
{[%clk 0:00:18.3]} 44... g3 {[%clk 0:00:22.1]} 45. Kf3 {[%clk 0:00:18.8]} 45...
Rc3+ {[%clk 0:00:21.9]} 46. Kg2 {[%clk 0:00:19.7]} 46... Ra3 {[%clk 0:00:21.6]}
47. Ra7 {[%clk 0:00:18.9]} 47... Bg5 {[%clk 0:00:20.5]} 48. Rb7 {[%clk 0:00:19]}
48... Bf4 {[%clk 0:00:18.6]} 49. Rb2 {[%clk 0:00:18.9]} 49... Rc3 {[%clk
0:00:16.9]} 50. Re2+ {[%clk 0:00:19.3]} 50... Kd7 {[%clk 0:00:15.7]} 51. Ra2
{[%clk 0:00:20.2]} 51... Rd3 {[%clk 0:00:15]} 52. Rxa5 {[%clk 0:00:20.1]} 52...
Rd2+ {[%clk 0:00:14.4]} 53. Kf3 {[%clk 0:00:20.6]} 53... g2 {[%clk 0:00:14.6]}
54. Ra4 {[%clk 0:00:19.9]} 54... g1=Q {[%clk 0:00:13.7]} 55. Rxf4 {[%clk
0:00:20.8]} 55... Qf2+ {[%clk 0:00:13]} 56. Kg4 {[%clk 0:00:20.9]} 56... Qg2+
{[%clk 0:00:10.8]} 57. Kh4 {[%clk 0:00:21.1]} 57... Rxd5 {[%clk 0:00:10.4]} 58.
Rxf7+ {[%clk 0:00:20.8]} 58... Kc6 {[%clk 0:00:06.1]} 59. Rc7+ {[%clk
0:00:20.9]} 59... Kb5 {[%clk 0:00:06.3]} 60. Rc5+ {[%clk 0:00:21.2]} 60... Kb4
{[%clk 0:00:06.3]} 61. Rc4+ {[%clk 0:00:21.4]} 61... Kb3 {[%clk 0:00:06.2]} 62.
Rb4+ {[%clk 0:00:21.7]} 62... Kc3 {[%clk 0:00:05.2]} 63. Rb3+ {[%clk 0:00:22]}
63... Kd4 {[%clk 0:00:04.3]} 64. Rb4+ {[%clk 0:00:13.9]} 64... Ke5 {[%clk
0:00:03.7]} 65. Rg4 {[%clk 0:00:14.3]} 65... Qh2+ {[%clk 0:00:01.4]} 66. Kg5
{[%clk 0:00:14.4]} 66... Ke6+ {[%clk 0:00:01.6]} 67. Kg6 {[%clk 0:00:14.6]} 1-0